bitfinex-derivatives/quotes_ETHF0:USTF0_20250224
["timestamp","ask_amount","ask_price","bid_price","bid_amount"]
[1740411001522,1.81107398,2659.8,2659.6,0.75196]
[1740411001723,1.81107398,2659.8,2659.7,3.894]
[1740411001724,1.05914398,2659.8,2659.7,3.894]
[1740411001920,0.00564398,2659.8,2659.7,4.64594]
[1740411002123,3.2078,2660.1,2659.7,3.894]
[1740411002319,1.0535,2660.2,2660.0,0.75186]
[1740411002524,1.0535,2660.2,2660.1,0.75183]
[1740411002722,1.0535,2660.2,2659.7,7.1018]
[1740411002924,2.93304,2660.2,2659.7,3.2078]
[1740411003124,2.93304,2660.2,2659.3,40.8]
[1740411003125,0.75189,2659.9,2659.8,3.893]
[1740411003330,2.82079,2660.1,2659.7,0.00564398]
[1740411003643,0.75192,2659.8,2659.7,0.00564398]
[1740411004726,1.87993,2659.7,2658.6,3.2078]
[1740411004931,0.75215,2659.0,2658.8,0.75218]
[1740411005132,3.88233,2659.3,2658.6,3.2078]
[1740411005432,0.9753,2658.9,2658.7,3.893]
[1740411005626,1.88058,2658.7,2658.0,3.2078]
[1740411005831,3.2078,2658.6,2658.0,3.2078]
[1740411006025,0.00564398,2658.6,2658.0,5.08881]
[1740411006321,0.75791398,2658.6,2658.3,0.75233]
[1740411006525,0.00564398,2658.6,2658.3,3.892]
[1740411006933,0.00564398,2658.6,2658.5,0.75228]
[1740411007327,0.00564398,2658.6,2658.3,3.892]
[1740411007534,0.00564398,2658.6,2658.0,3.2078]
[1740411007739,0.00564398,2658.6,2658.1,4.64438]
[1740411007932,0.00564398,2658.6,2658.1,3.892]
[1740411008122,0.00564398,2658.6,2658.0,3.2078]
[1740411008327,0.7524,2658.1,2658.0,3.2078]
[1740411008527,0.7524,2658.1,2658.0,7.0998]
[1740411008732,0.75235,2658.3,2658.0,7.8522]
[1740411008927,0.9572,2658.5,2658.0,7.0998]
[1740411009329,0.7524,2658.1,2658.0,3.2078]
[1740411009535,0.9572,2658.5,2658.0,3.96021]
[1740411009730,0.9572,2658.5,2658.0,3.2078]
[1740411010039,0.75245,2657.9,2657.8,44.692]
[1740411010628,1.881,2658.1,2657.8,3.892]
[1740411010835,0.75245,2657.9,2657.8,3.892]
[1740411011333,5.08894,2657.9,2657.3,27.9548]
[1740411011525,0.9261,2657.8,2657.1,0.31408316]
[1740411011729,0.75253,2657.7,2657.5,0.75255]
[1740411012026,3.2078,2657.7,2657.2,40.8]
[1740411012331,0.75262,2657.3,2657.2,40.8]
[1740411012543,3.2078,2657.4,2656.9,0.75273]
[1740411012834,0.75274,2656.9,2656.8,3.892]
[1740411013032,0.75274,2656.9,2656.7,0.75278]
[1740411013233,0.93174398,2657.1,2656.6,3.2078]
[1740411013426,4.13954398,2657.1,2656.6,3.2078]
[1740411013634,6.02128398,2657.1,2656.4,20.86]
[1740411013827,4.13954398,2657.1,2656.4,20.86]
[1740411014034,4.13954398,2657.1,2656.6,3.2078]
[1740411014229,0.41977412,2657.3,2656.9,3.2078]
[1740411014432,3.2078,2657.8,2657.2,3.2078]
[1740411014636,0.75254,2657.6,2657.2,3.2078]
[1740411014935,7.0998,2657.8,2656.6,40.8]
[1740411015130,3.2078,2657.8,2656.8,3.2078]
[1740411015331,0.896,2658.1,2657.7,3.2078]
[1740411015525,3.2078,2658.4,2657.8,3.892]
[1740411015730,3.2078,2659.1,2658.1,3.2078]
[1740411015932,0.00564398,2658.4,2658.3,44.76014]
[1740411016133,3.2078,2659.1,2658.3,44.69764398]
[1740411016331,0.896,2659.4,2658.3,44.69764398]
[1740411016332,0.75231,2658.4,2658.3,44.69764398]
[1740411016731,0.896,2658.7,2658.3,44.69764398]
[1740411017132,0.75231,2658.4,2658.3,40.80564398]
[1740411017436,0.75231,2658.4,2658.3,3.98e-06]
[1740411017735,6.75231,2658.4,2658.3,3.98e-06]
[1740411018136,0.75231,2658.4,2658.3,3.98e-06]
[1740411019443,6.75231,2658.4,2658.3,3.98e-06]
[1740411019637,5.4806,2658.6,2657.7,4.6435]
[1740411019938,3.2078,2658.2,2657.8,0.75247]
[1740411020134,3.2078,2658.5,2657.7,5.77224]
[1740411020331,1.8979,2658.6,2657.9,3.2078]
[1740411020533,0.9577,2658.6,2658.5,0.75228]
[1740411020737,0.9577,2658.6,2658.3,7.0978]
[1740411020937,0.9577,2658.6,2658.5,0.75228]
[1740411021539,0.9556,2659.0,2658.9,0.75217]
[1740411021742,0.939,2659.2,2658.9,3.89]
[1740411021943,0.9556,2659.6,2659.0,3.2078]
[1740411022240,1.8389,2659.8,2659.3,3.2078]
[1740411022437,0.939,2659.8,2659.4,3.89]
[1740411022633,0.939,2659.8,2659.6,0.75196]
[1740411022837,0.75203,2659.4,2659.3,0.00564398]
[1740411023044,0.75203,2659.4,2658.1,3.2078]
[1740411023045,1.88017,2659.3,2658.1,3.2078]
[1740411023242,0.75237,2658.2,2658.1,3.2078]
[1740411023549,1.88072,2658.5,2657.7,20.865]
[1740411023740,1.65192,2658.4,2658.1,0.75239]
[1740411023940,0.8996,2658.4,2658.0,3.2078]
[1740411024245,0.00564398,2658.5,2658.1,3.2078]
[1740411024446,0.00564398,2658.5,2658.2,3.889]
[1740411024641,0.75234,2658.3,2658.2,3.889]
[1740411024949,0.75238,2658.2,2658.0,0.00564398]
[1740411025241,0.75238,2658.2,2658.0,0.75805398]
[1740411025242,0.75237,2658.2,2658.0,0.75805398]
[1740411025544,0.8996,2658.4,2658.1,0.75238]
[1740411025842,0.7524,2658.1,2658.0,0.00564398]
[1740411026048,3.2078,2658.3,2657.2,0.9443]
[1740411026243,3.2078,2657.7,2656.7,20.862]
[1740411026545,0.9428,2657.6,2656.7,64.8698]
[1740411026842,3.2078,2657.3,2656.7,61.662]
[1740411027041,3.2078,2657.3,2656.7,40.8]
[1740411027042,0.75277,2656.8,2656.7,40.8]
[1740411027242,0.8975,2657.2,2656.2,3.889]
[1740411027243,5.08952,2657.1,2656.2,3.889]
[1740411027443,0.75287,2656.5,2656.2,3.889]
[1740411027744,0.75288,2656.4,2656.3,40.8]
[1740411028246,0.75293,2656.3,2655.6,3.2078]
[1740411028436,3.2078,2656.5,2655.9,3.2078]
[1740411028643,3.2078,2656.9,2656.2,3.2078]
[1740411028844,3.2078,2656.9,2656.3,40.8]
[1740411029045,0.9428,2657.6,2656.8,3.2078]
[1740411029243,0.9428,2657.6,2657.1,3.2078]
[1740411029449,0.75258,2657.5,2657.1,3.889]
[1740411029644,0.9428,2657.6,2657.1,3.889]
[1740411029851,0.75265,2657.2,2657.1,3.889]
[1740411030052,0.75258,2657.5,2657.1,3.889]
[1740411030245,0.00564398,2657.4,2657.2,0.75264]
[1740411030445,0.00564398,2657.4,2657.1,3.889]
[1740411030446,0.00564398,2657.4,2657.3,0.75262]
[1740411031043,0.9619,2657.9,2657.3,6.0]
[1740411031246,0.9619,2657.9,2657.8,0.75248]
[1740411031847,0.75244,2658.0,2657.7,4.6415]
[1740411032051,0.75251,2657.8,2657.4,0.7526]
[1740411032247,0.00564398,2658.1,2657.5,7.0968]
[1740411032550,0.75806398,2658.1,2657.5,7.41064182]
[1740411032753,0.00564398,2658.1,2657.5,7.41064182]
[1740411032947,0.00564398,2658.1,2658.0,0.75243]
[1740411033252,0.8219,2658.8,2658.0,3.889]
[1740411033445,4.0305,2659.0,2658.8,0.75218]
[1740411033642,4.0305,2659.0,2658.6,7.0968]
[1740411033851,0.8227,2659.0,2658.3,3.2078]
[1740411034051,0.8227,2659.0,2658.8,3.2078]
[1740411034350,0.00564398,2658.8,2658.3,0.00564398]
[1740411034546,0.75231,2658.4,2658.3,3.89364398]
[1740411034747,3.96011,2658.4,2658.3,3.89364398]
[1740411034947,0.75231,2658.4,2658.3,0.00564398]
[1740411035143,0.7523,2658.5,2658.3,0.00564398]
[1740411035354,0.75231,2658.4,2658.3,0.00564398]
[1740411035852,0.00564398,2658.8,2658.3,0.00564398]
[1740411036055,0.75785398,2658.8,2658.3,0.00564398]
[1740411036242,0.75231,2658.4,2658.3,0.00564398]
[1740411036447,0.00564398,2658.8,2658.3,0.00564398]
[1740411036641,0.00564398,2658.8,2658.7,0.75223]
[1740411037052,0.00564398,2658.8,2658.5,40.8]
[1740411037254,0.00564398,2658.8,2658.7,0.75223]
[1740411037849,3.2078,2659.5,2658.6,3.2078]
[1740411037850,3.88233,2659.9,2658.6,3.2078]
[1740411038048,3.2078,2660.2,2659.5,3.2078]
[1740411038351,3.2078,2660.5,2659.8,3.2078]
[1740411038550,3.2078,2660.5,2659.9,3.887]
[1740411038752,3.2078,2660.5,2659.9,4.63888]
[1740411038951,3.2078,2660.5,2659.8,0.30304281]
[1740411039255,0.75186,2660.0,2659.9,0.00564398]
[1740411039758,1.52213,2660.1,2659.9,0.00564398]
[1740411039950,3.2078,2660.7,2659.9,0.00564398]
[1740411040247,3.2078,2661.1,2660.4,0.75175]
[1740411040452,0.8476,2661.2,2660.6,3.2078]
[1740411040649,0.7516,2661.0,2660.7,3.887]
[1740411041049,3.2078,2661.1,2660.7,3.886]
[1740411041442,0.75158,2661.0,2660.7,4.63765]
[1740411041661,3.2078,2661.1,2660.3,40.8]
[1740411041952,3.2078,2660.8,2660.1,7.0928]
[1740411042153,3.2078,2661.1,2660.1,7.0928]
[1740411042352,3.2078,2661.1,2660.2,40.8]
[1740411042651,3.2078,2660.5,2660.1,3.885]
[1740411042852,3.2078,2660.8,2660.1,3.885]
[1740411043155,0.7517,2660.6,2660.3,0.75176]
[1740411043652,3.2078,2660.8,2660.1,3.885]
[1740411043948,3.95945,2660.8,2660.5,0.7517]
[1740411044148,3.2078,2660.8,2660.1,3.885]
[1740411044948,1.87895,2661.0,2660.1,4.63682]
[1740411045152,3.2078,2660.8,2660.1,4.63681]
[1740411045346,3.2078,2660.8,2660.1,3.885]
[1740411045552,0.75167,2660.7,2660.4,0.75173]
[1740411045752,3.95945,2660.8,2660.5,0.75171]
[1740411045950,3.2078,2660.8,2660.1,3.885]
[1740411046152,0.85324398,2661.2,2660.6,3.2078]
[1740411046449,0.00564398,2661.2,2661.0,3.95936]
[1740411046644,0.75156,2661.1,2660.7,7.0918]
[1740411046848,0.00564398,2661.2,2661.1,0.75155]
[1740411047051,0.00564398,2661.2,2661.0,3.95936]
[1740411047246,0.00564398,2661.2,2661.1,0.75155]
[1740411047750,0.00564398,2661.2,2661.0,0.75156]
[1740411047956,0.00564398,2661.2,2660.9,3.2078]
[1740411048352,0.75716398,2661.2,2660.9,3.95939]
[1740411048549,0.00564398,2661.2,2661.1,0.75155]
[1740411049455,1.87768,2662.8,2661.2,3.75762]
[1740411049651,4.8777,2662.9,2661.7,3.2078]
[1740411049847,1.6699,2662.9,2662.1,1.87817]
[1740411050050,6.75537,2662.9,2662.2,3.2078]
[1740411050254,0.75121,2662.3,2662.2,7.0898]
[1740411050451,3.2078,2662.3,2661.8,44.682]
[1740411050658,0.75132,2661.9,2661.8,44.682]
[1740411050961,3.2078,2662.3,2661.8,40.8]
[1740411051148,0.75123,2662.3,2661.7,3.881]
[1740411051352,0.8542,2662.4,2661.7,3.881]
[1740411051353,0.8542,2662.4,2661.7,7.0888]
[1740411051861,4.062,2662.4,2661.8,40.8]
[1740411052161,4.062,2662.4,2661.7,3.881]
[1740411052654,0.75131,2662.0,2661.7,4.63237]
[1740411052856,4.062,2662.4,2661.6,0.00564398]
[1740411053064,0.75138,2661.7,2661.6,0.00564398]
[1740411055055,3.2078,2661.8,2661.0,3.88]
[1740411055356,0.7515,2661.3,2661.1,0.75153]
[1740411055672,0.75158,2661.0,2660.9,20.85]
[1740411055961,0.75158,2661.0,2660.9,24.73]
[1740411056461,0.75158,2661.0,2660.9,20.85]
[1740411056665,0.7516,2661.0,2660.8,4.63062]
[1740411056966,0.75161,2660.9,2660.8,3.879]
[1740411057564,4.04954398,2661.2,2660.8,3.879]
[1740411057761,4.04954398,2661.2,2660.7,0.00564398]
[1740411057966,0.75163,2660.8,2660.7,3.88464398]
[1740411058167,0.75163,2660.8,2660.7,0.00564398]
[1740411059665,3.2078,2660.9,2660.7,0.00564398]
[1740411059863,0.75161,2660.9,2660.7,0.75729398]
[1740411060064,0.87,2661.1,2660.7,0.00564398]
[1740411060364,0.8432,2661.6,2661.5,0.75144]
[1740411060666,0.75139,2661.7,2661.5,4.63042]
[1740411060860,0.75139,2661.7,2661.6,40.8]
[1740411061061,0.8379,2662.0,2661.6,44.0078]
[1740411061559,0.00371253,2662.1,2661.6,44.0078]
[1740411061758,0.00371253,2662.1,2662.0,0.75129]
[1740411061967,0.00371253,2662.1,2662.0,4.62929]
[1740411062168,0.00371253,2662.1,2661.9,3.2078]
[1740411062468,0.00371253,2662.1,2662.0,45.42929]
[1740411062858,0.8379,2662.7,2662.0,50.99320337]
[1740411063059,0.8379,2662.7,2662.2,3.2078]
[1740411063362,0.8379,2662.7,2662.4,0.75117]
[1740411063363,1.58902,2662.7,2662.4,0.75117]
[1740411063565,0.75127,2662.1,2662.0,40.8]
[1740411063766,3.2078,2662.3,2661.5,3.878]
[1740411063967,3.95912,2661.9,2661.8,0.00564398]
[1740411064464,3.95912,2661.9,2660.3,0.5946]
[1740411064465,9.2078,2661.9,2660.3,0.5946]
[1740411064668,1.87895,2661.0,2660.4,3.877]
[1740411064965,3.2078,2660.5,2659.9,24.0468]
[1740411065171,0.7518,2660.2,2660.1,3.877]
[1740411065465,0.8353,2660.4,2660.1,4.62883]
[1740411065665,0.7518,2660.2,2660.1,3.877]
[1740411065965,0.84094398,2660.4,2660.1,3.877]
[1740411066170,0.84094398,2660.4,2659.2,3.2078]
[1740411066171,3.2078,2660.2,2659.2,3.2078]
[1740411066468,3.2078,2659.7,2659.0,3.877]
[1740411066668,3.2078,2659.7,2659.1,40.8]
[1740411066869,0.7521,2659.2,2659.1,40.8]
[1740411067067,3.2078,2659.9,2659.1,3.877]
[1740411067262,4.04874398,2660.4,2659.3,3.2078]
[1740411067465,4.04874398,2660.4,2659.4,1.88007]
[1740411067759,4.04874398,2660.4,2659.8,3.2078]
[1740411067959,4.04874398,2660.4,2659.2,0.00564398]
[1740411067960,4.04874398,2660.4,2659.9,4.62888]
[1740411068164,0.00564398,2660.4,2659.9,3.877]
[1740411068461,0.00564398,2660.4,2660.1,3.2078]
[1740411068666,0.00564398,2660.4,2660.2,3.877]
[1740411069163,0.00564398,2660.4,2660.1,0.75183]
[1740411069370,0.7518,2660.3,2660.2,3.877]
[1740411069559,0.75177,2660.3,2660.2,3.877]
[1740411070365,1.87952,2660.2,2659.4,0.75202]
[1740411070564,0.7914,2660.2,2659.5,4.62899]
[1740411070768,0.75197,2659.6,2659.5,3.877]
[1740411071070,0.75206,2659.3,2659.2,0.00564398]
[1740411071265,0.75228,2658.5,2658.4,3.877]
[1740411071568,1.88026,2659.2,2658.4,40.8]
[1740411071569,3.2078,2658.7,2658.4,40.8]
[1740411071765,0.75228,2658.5,2658.4,40.8]
[1740411072567,0.75234,2658.3,2658.2,0.00564398]
[1740411073173,0.75234,2658.3,2658.2,40.80564398]
[1740411073771,0.75234,2658.3,2658.2,0.00564398]
[1740411074071,3.21344398,2658.7,2658.2,0.00564398]
[1740411074270,0.75788398,2658.7,2658.5,0.75228]
[1740411074574,0.00564398,2658.7,2658.5,3.877]
[1740411074874,0.00564398,2658.7,2658.6,41.55226]
[1740411075272,0.00564398,2658.7,2658.6,40.8]
[1740411075566,0.00564398,2658.7,2658.6,41.55226]
[1740411075771,0.75787398,2658.7,2658.6,40.8]
[1740411076364,0.00564398,2658.7,2658.4,0.75231]
[1740411076569,0.00564398,2658.7,2658.5,0.75227]
[1740411076773,0.00564398,2658.7,2658.3,3.2078]
[1740411077073,0.00564398,2658.7,2658.6,44.76006]
[1740411077372,0.00564398,2658.7,2658.6,48.63706]
[1740411077567,0.75186,2660.0,2659.0,1.88036]
[1740411077876,1.5861,2660.1,2659.4,3.2078]
[1740411078068,0.773,2660.1,2660.0,0.75186]
[1740411078370,0.773,2660.1,2660.0,3.878]
[1740411078571,0.87874398,2660.3,2660.2,0.7518]
[1740411078875,0.87874398,2660.3,2660.1,40.8]
[1740411078876,0.7518,2660.2,2660.1,40.8]
[1740411079169,0.00564398,2660.3,2660.2,0.7518]
[1740411079378,0.773,2660.9,2660.2,3.2078]
[1740411079868,0.773,2660.9,2659.8,3.21344398]
[1740411080065,3.2078,2660.7,2659.9,3.877]
[1740411080271,3.2078,2660.4,2659.8,0.75754398]
[1740411080574,0.75189,2659.9,2659.8,0.00564398]
[1740411081178,1.87944,2660.3,2659.8,0.00564398]
[1740411081470,3.2078,2660.4,2659.8,0.75754398]
[1740411081676,3.2078,2660.4,2659.8,0.00564398]
[1740411081980,3.2078,2660.4,2659.9,0.75187]
[1740411082173,3.2078,2660.4,2659.8,0.00564398]
[1740411082374,0.7479,2660.5,2659.8,0.00564398]
[1740411082765,0.75735398,2660.6,2660.3,0.75177]
[1740411083080,0.00564398,2660.6,2660.5,0.75172]
[1740411083478,0.00564398,2660.6,2660.2,3.877]
[1740411083777,0.75172,2660.5,2660.2,3.877]
[1740411083973,0.75734398,2660.6,2660.2,3.877]
[1740411084174,0.00564398,2660.6,2660.2,3.877]
[1740411084673,0.00564398,2660.6,2660.3,40.8]
[1740411084875,0.75735398,2660.6,2660.3,40.8]
[1740411085070,0.00564398,2660.6,2660.5,0.75172]
[1740411085472,0.00564398,2660.6,2660.3,40.8]
[1740411085673,0.75173,2660.5,2660.3,40.8]
[1740411085868,1.87937,2660.4,2659.8,3.96535398]
[1740411086189,1.87937,2660.4,2659.8,0.00564398]
[1740411086190,0.75189,2659.9,2659.8,0.00564398]
[1740411086374,3.2078,2660.2,2659.8,0.00564398]
[1740411086566,0.75189,2659.9,2659.8,0.00564398]
[1740411086770,3.2078,2660.2,2660.0,0.75185]
[1740411086976,3.2078,2660.2,2660.1,0.75183]
[1740411087177,0.00564398,2660.6,2659.8,1.88540398]
[1740411087178,0.00564398,2660.6,2660.5,0.75172]
[1740411087383,0.00564398,2660.6,2660.3,3.875]
[1740411088076,0.00564398,2660.6,2659.9,3.875]
[1740411088077,0.75186,2660.0,2659.9,3.875]
[1740411088276,1.87949,2660.3,2659.8,0.00564398]
[1740411088476,0.75185,2660.1,2659.9,0.75188]
[1740411088672,0.75189,2659.9,2659.8,0.00564398]
[1740411088974,0.8363,2660.0,2659.1,3.2078]
[1740411089168,1.87994,2659.6,2659.1,7.0828]
[1740411089373,3.2078,2659.7,2659.1,7.0828]
[1740411089575,3.2078,2659.7,2659.1,7.83489]
[1740411089779,3.2078,2659.7,2659.1,7.0828]
[1740411089981,0.75207,2659.3,2659.1,7.0828]
[1740411090169,0.75198,2659.6,2659.1,7.0828]
[1740411090375,0.75199,2659.6,2659.1,7.08844398]
[1740411090569,3.2078,2659.7,2659.1,7.08844398]
[1740411090777,0.75193,2659.8,2659.6,0.75195]
[1740411090976,0.75193,2659.8,2659.1,7.08844398]
[1740411090977,0.75196,2659.7,2659.5,0.75198]
[1740411091170,4.8224,2660.0,2659.6,0.75196]
[1740411091375,1.6146,2660.0,2659.4,3.2078]
[1740411091570,0.8363,2660.0,2659.9,0.75189]
[1740411092082,0.8363,2660.0,2659.9,41.55189]
[1740411092671,0.75734398,2660.6,2659.9,40.8]
[1740411092985,0.75173,2660.5,2660.3,0.75176]
[1740411093176,0.75175,2660.4,2660.3,3.875]
[1740411093881,3.21344398,2660.6,2660.3,3.875]
[1740411094273,3.96515398,2660.6,2660.3,3.875]
[1740411094474,0.75173,2660.5,2660.3,4.62676]
[1740411094678,3.21344398,2660.6,2660.0,3.874]
[1740411095378,3.21344398,2660.6,2660.3,0.75176]
[1740411095579,0.75172,2660.5,2660.0,3.874]
[1740411095781,0.00564398,2660.6,2660.1,1.87959]
[1740411095980,0.00564398,2660.6,2660.4,0.75174]
[1740411096179,0.00564398,2660.6,2660.5,4.62572]
[1740411096574,0.75733398,2660.6,2660.5,3.874]
[1740411096777,0.00564398,2660.6,2660.5,4.62572]
[1740411097385,0.00564398,2660.6,2660.5,3.874]
[1740411097586,0.00564398,2660.6,2660.5,4.62572]
[1740411097883,0.00564398,2660.6,2659.9,44.0078]
[1740411098087,3.21344398,2660.6,2660.0,3.874]
[1740411098384,1.87933,2660.5,2659.8,20.849]
[1740411098582,0.75187,2660.0,2659.9,3.873]
[1740411098789,0.75189,2659.9,2659.8,24.722]
[1740411098990,3.2078,2660.3,2659.8,24.722]
[1740411099193,1.87952,2660.2,2659.6,3.2078]
[1740411099382,0.75194,2659.7,2659.6,3.2078]
[1740411099783,0.75194,2659.7,2659.6,3.95977]
[1740411099984,3.2078,2660.0,2659.6,3.2078]
[1740411100183,0.75194,2659.7,2659.6,3.95977]
[1740411100387,5.08748,2660.0,2659.6,3.2078]
[1740411100388,0.75189,2659.9,2659.6,3.2078]
[1740411100692,0.75194,2659.7,2659.6,3.2078]
[1740411100885,0.75189,2659.9,2659.7,0.75194]
[1740411101088,0.75194,2659.8,2659.6,3.95976]
[1740411101288,0.7525,2660.2,2659.6,3.2078]
[1740411101483,3.9603,2660.2,2659.9,0.75188]
[1740411101678,0.7525,2660.2,2660.1,0.75183]
[1740411101883,0.00564398,2660.6,2660.1,3.873]
[1740411102087,3.2078,2660.5,2660.2,0.7518]
[1740411102287,0.75177,2660.4,2660.2,0.75179]
[1740411102589,0.75179,2660.3,2660.1,4.62481]
[1740411102779,0.38214398,2660.6,2660.1,7.0808]
[1740411103085,0.00564398,2660.6,2660.5,0.75172]
[1740411103789,0.00564398,2660.6,2660.1,8.96033]
[1740411103987,0.75174,2660.5,2660.3,0.75176]
[1740411104389,0.75173,2660.5,2660.3,0.75176]
[1740411104589,0.00564398,2660.6,2660.1,5.75257]
[1740411104883,0.00564398,2660.6,2660.5,0.75172]
[1740411106189,0.00564398,2660.6,2660.1,3.873]
[1740411106389,0.7345,2660.7,2660.6,0.75169]
[1740411106693,3.2078,2661.9,2660.6,7.0798]
[1740411106985,0.75137,2661.8,2661.6,0.7514]
[1740411107185,0.75139,2661.7,2661.6,3.872]
[1740411107380,1.60944733,2662.1,2661.6,3.872]
[1740411107585,0.00564398,2661.9,2661.6,3.872]
[1740411108185,0.75138,2661.7,2661.6,3.872]
[1740411108592,0.75144,2661.5,2661.4,0.00564398]
[1740411108986,3.2078,2661.7,2661.4,0.00564398]
[1740411109183,0.00564398,2661.9,2661.4,0.00564398]
[1740411109387,0.75699398,2661.9,2661.6,0.75139]
[1740411109583,0.00564398,2661.9,2661.6,0.75139]
[1740411109780,0.00564398,2661.9,2661.8,0.75135]
[1740411109988,0.7091,2662.1,2662.0,0.75129]
[1740411110289,3.95893,2662.6,2662.4,0.75117]
[1740411110488,3.2078,2662.6,2662.5,0.75115]
[1740411110689,1.433,2662.9,2662.4,3.871]
[1740411111193,0.75111,2662.7,2662.4,4.62217]
[1740411111392,1.433,2662.9,2662.4,3.871]
[1740411111587,2.18405,2662.9,2662.6,0.75111]
[1740411111793,2.18405,2662.9,2662.4,3.871]
[1740411111794,1.433,2662.9,2662.4,4.62217]
[1740411112098,1.433,2662.9,2662.4,3.871]
[1740411112286,3.2078,2662.8,2662.4,3.871]
[1740411112795,3.2078,2662.5,2661.8,3.2078]
[1740411112989,0.75122,2662.3,2662.0,0.75129]
[1740411113190,3.2078,2662.5,2661.9,3.87]
[1740411113390,0.7186,2662.9,2661.9,3.87]
[1740411113391,0.7105,2662.8,2662.1,3.2078]
[1740411113896,0.7105,2662.8,2662.0,0.75127]
[1740411113897,0.75122,2662.3,2662.0,0.75127]
[1740411114099,3.2078,2662.6,2661.9,3.87]
[1740411114295,0.75116,2662.5,2662.2,0.75122]
[1740411114497,1.51722,2662.7,2662.4,0.75117]
[1740411114793,0.75117,2662.5,2662.3,0.75121]
[1740411115093,3.2078,2662.6,2661.4,20.85164398]
[1740411115294,0.75134,2661.9,2661.7,0.75137]
[1740411115594,1.8781,2662.2,2661.4,20.85164398]
[1740411115790,0.75134,2661.9,2661.7,0.75138]
[1740411115992,0.75137,2661.8,2661.6,0.75141]
[1740411116200,3.2078,2662.0,2661.9,0.75132]
[1740411116692,3.95909,2662.0,2661.8,0.75133]
[1740411116887,3.2078,2662.0,2661.5,7.0768]
[1740411117186,0.75141,2661.6,2661.5,3.869]
[1740411117390,0.75144,2661.5,2661.4,0.00564398]
[1740411118193,0.7345,2661.9,2661.8,0.75135]
[1740411118389,0.7345,2661.9,2661.7,3.868]
[1740411118696,0.75135,2661.8,2661.7,3.868]
[1740411119095,0.75135,2661.8,2661.4,0.00564398]
[1740411119096,0.75144,2661.5,2661.4,0.00564398]
[1740411120600,0.75163,2660.8,2660.7,20.838]
[1740411120799,0.75162,2660.9,2660.7,24.705]
[1740411121000,3.2078,2661.1,2660.7,24.705]
[1740411121305,0.75163,2660.8,2660.7,25.45666]
[1740411121506,0.75163,2660.8,2660.7,24.705]
[1740411121705,0.753,2661.1,2660.7,24.705]
[1740411121905,0.0056083,2661.0,2660.9,0.75161]
[1740411122900,0.0056083,2661.0,2660.7,24.0458]
[1740411123102,0.0056083,2661.0,2660.5,41.11051386]
[1740411123103,3.2078,2660.9,2660.5,40.80563327]
[1740411123303,3.95949,2660.6,2660.5,40.80563327]
[1740411123500,3.95949,2660.6,2660.5,0.00563327]
[1740411123799,3.2078,2660.6,2659.8,3.50971316]
[1740411124009,3.9704,2660.5,2659.9,40.8]
[1740411124196,0.75185,2660.1,2659.9,41.55187]
[1740411124395,0.75186,2660.0,2659.9,40.8]
[1740411124599,3.2078,2660.1,2659.3,3.2078]
[1740411124802,0.75193,2659.8,2659.4,3.867]
[1740411124999,3.2078,2660.1,2659.5,40.8]
[1740411125296,3.2078,2659.6,2659.4,0.00563327]
[1740411125499,3.2078,2659.6,2658.4,1.88079]
[1740411125699,3.2078,2659.4,2659.3,0.75206]
[1740411125905,1.518,2659.5,2659.4,0.75203]
[1740411126302,0.75193,2659.8,2659.4,3.2078]
[1740411126505,3.2078,2660.1,2659.7,3.2078]
[1740411126707,0.00563327,2659.9,2659.8,0.7519]
[1740411126902,0.752,2659.5,2659.4,3.2078]
[1740411127407,0.75203,2659.4,2659.3,3.87263327]
[1740411127610,1.49373,2659.4,2659.3,0.00563327]
[1740411128001,0.7417,2659.4,2659.3,0.75769327]
[1740411128210,0.75196,2659.7,2659.4,0.75201]
[1740411128400,0.00563327,2659.9,2659.3,3.87163327]
[1740411128605,0.00563327,2659.9,2659.4,3.2078]
[1740411128802,0.75753327,2659.9,2659.6,0.75196]
[1740411129010,0.75193,2659.8,2659.4,3.2078]
[1740411129315,0.00563327,2659.9,2659.8,0.75192]
[1740411129608,0.00563327,2659.9,2659.8,4.61892]
[1740411129910,0.75166,2660.7,2660.4,0.75173]
[1740411130103,1.5257,2660.8,2660.4,3.867]
[1740411130306,0.75172,2660.5,2660.4,3.867]
[1740411130501,0.7518,2660.2,2660.1,3.2078]
[1740411130706,0.7518,2660.2,2660.1,3.867]
[1740411131112,0.7518,2660.2,2659.8,41.55189]
[1740411131113,0.75189,2659.9,2659.8,40.8]
[1740411131319,0.75197,2659.6,2659.5,20.845]
[1740411131515,0.75193,2659.8,2659.5,20.845]
[1740411131824,4.754,2660.1,2659.5,61.645]
[1740411132124,5.50585,2660.1,2659.8,0.75189]
[1740411132318,0.00563327,2660.4,2659.9,3.867]
[1740411132523,0.75178,2660.3,2660.1,0.75182]
[1740411133016,0.00563327,2660.4,2659.9,7.0748]
[1740411133413,0.75739327,2660.4,2660.2,0.7518]
[1740411134020,0.00563327,2660.4,2660.3,0.75177]
[1740411134320,3.2078,2661.3,2660.3,1.05066308]
[1740411134623,3.2078,2661.3,2660.4,3.866]
[1740411135319,0.7417,2661.9,2661.2,3.2078]
[1740411135514,3.2078,2662.3,2661.2,3.2078]
[1740411135515,0.7116,2662.3,2662.2,0.75124]
[1740411135827,0.7129,2662.8,2662.2,3.866]
[1740411136011,0.0056083,2662.5,2662.4,0.75118]
[1740411136518,0.0056083,2662.5,2662.4,3.866]